fUST/lending_fUST_20250429
["ID","MTS","AMOUNT","RATE_DAILY","PERIOD"]
[359330514,1745930428658,-200.0,0.00034137,30]
[359330515,1745930431049,-200.0,0.00034137,30]
[359330516,1745930442465,-82.016897,0.00034137,30]
[359330517,1745930442488,-117.983103,0.00034478,30]
[359330518,1745930444868,-35.016897,0.00034478,30]
[359330519,1745930444891,-164.983103,0.00035452,30]
[359330522,1745930451897,-142.6014401,0.00035452,30]
[359330523,1745930451939,-57.3985599,0.00035616,60]
[359330524,1745930458560,-200.0,0.00035616,60]
[359330525,1745930460131,-200.0,0.00035616,60]
[359330526,1745930488331,-200.0,0.00035616,60]
[359330527,1745930491678,-200.0,0.00035616,60]
[359330532,1745930719843,-200.0,0.00035,30]
[359330533,1745930722382,-200.0,0.00035,30]
[359330534,1745930724617,-200.0,0.00035,30]
[359330535,1745930726026,-200.0,0.00035,30]
[359330536,1745930732960,-200.0,0.00035,30]
[359330541,1745930939267,-200.0,0.00035,30]
[359330587,1745931032480,-151.0,0.00018585,2]
[359330589,1745931032490,-174.55357062,0.00019954,2]
[359330591,1745931032500,-4487.5233907,0.00020274,2]
[359330594,1745931032509,-159.5150221,0.00020564,2]
[359330596,1745931032519,-1234.8000173,0.00021266,2]
[359330598,1745931032529,-611.92194401,0.00021589,2]
[359330600,1745931032541,-3113.86072135,0.00022404,2]
[359330606,1745931032590,-5207.45462585,0.00022404,2]
[359330608,1745931032600,-309.5008986,0.00022454,2]
[359330610,1745931032609,-250.0,0.00022553,2]
[359330612,1745931032619,-536.4704195,0.00022556,2]
[359330614,1745931032628,-300.0,0.0002266,2]
[359330616,1745931032638,-15559.82882201,0.0002266,2]
[359330618,1745931032647,-201.32548164,0.000229,4]
[359330620,1745931032657,-172.646831,0.00023142,2]
[359330622,1745931032666,-201.32548154,0.00023543,4]
[359330624,1745931032675,-326.60046631,0.00024,2]
[359330626,1745931032684,-201.32548154,0.00024186,5]
[359330628,1745931032694,-500.0,0.00024587,2]
[359330630,1745931032703,-420.0,0.00024607,2]
[359330632,1745931032713,-201.32548154,0.00024829,5]
[359330634,1745931032722,-201.32548154,0.00025471,6]
[359330636,1745931032730,-2985.0,0.00025931,2]
[359330638,1745931032740,-201.32548154,0.00026114,6]
[359330640,1745931032749,-587.0,0.00026722,2]
[359330642,1745931032758,-201.32548154,0.00026757,6]
[359330644,1745931032768,-163.048207,0.00027397,2]
[359330646,1745931032777,-201.32548154,0.000274,7]
[359330647,1745931032788,-4833.0,0.00027544,7]
[359330648,1745931032797,-201.32548154,0.00028043,7]
[359330649,1745931032807,-201.32548154,0.00028686,8]
[359330650,1745931032816,-823.0,0.00029018,2]
[359330651,1745931032825,-201.32548154,0.00029329,8]
[359330652,1745931032834,-201.32548154,0.00029971,9]
[359330653,1745931032843,-201.32548154,0.00030614,9]
[359330654,1745931032854,-201.32548154,0.00031257,9]
[359330655,1745931032863,-1152.0,0.00031512,3]
[359330656,1745931032872,-201.32548154,0.000319,10]
[359330657,1745931032881,-201.32548154,0.00032543,10]
[359330658,1745931032890,-201.32548154,0.00033186,11]
[359330659,1745931032899,-797.0252444,0.00033835,4]
[359330660,1745931032909,-9682.66046998,0.0003405,2]
[359330721,1745931038585,-201.32548154,0.00033829,11]
[359330722,1745931038596,-170.40767683,0.0003405,2]
[359330723,1745931038608,-2731.4858499,0.0003405,2]
[359330724,1745931038619,-502.04367879,0.000341,5]
[359330725,1745931038629,-500.0,0.000341,5]
[359330726,1745931038638,-500.0,0.000341,5]
[359330727,1745931038648,-500.0,0.000341,5]
[359330728,1745931038658,-1613.0,0.0003422,3]
[359330729,1745931038668,-201.32548154,0.00034471,11]
[359330730,1745931038678,-545.0,0.00034499,2]
[359330731,1745931038688,-1745.93505851,0.00034499,2]
[359330732,1745931038747,-505.06494149,0.00034499,2]
[359330733,1745931038758,-707.0,0.00034499,2]
[359330734,1745931038769,-150.0,0.00034499,2]
[359330735,1745931038779,-538.07893185,0.00035,2]
[359330736,1745931038790,-1778.26696408,0.00035,30]
[359330786,1745931040848,-0.03893976,0.00035,30]
[359330789,1745931040865,-2021.69409616,0.00035,30]
[359330791,1745931040874,-187.84152465,0.00035,120]
[359330793,1745931040886,-1833.26502442,0.00035,120]
[359330795,1745931040895,-201.32548154,0.00035114,12]
[359330797,1745931040904,-170.98310238,0.00035415,2]
[359330799,1745931040913,-160.0,0.00035428,2]
[359330801,1745931040922,-160.0,0.00035428,2]
[359330803,1745931040932,-3079.23650217,0.00035504,3]
[359330805,1745931040942,-15396.1825109,0.00035505,3]
[359330807,1745931040951,-500.0,0.00035514,7]
[359330809,1745931040960,-643.58757995,0.00035514,2]
[359330811,1745931040969,-643.58757995,0.00035514,2]
[359330813,1745931040978,-600.0,0.00035514,7]
[359330815,1745931040987,-500.0,0.00035514,7]
[359330817,1745931040997,-643.58757995,0.00035514,2]
[359330819,1745931041007,-643.58757995,0.00035514,2]
[359330821,1745931041016,-643.58757995,0.00035514,2]
[359330823,1745931041026,-644.3512271,0.00035514,7]
[359330825,1745931041036,-643.58757995,0.00035514,2]
[359330827,1745931041047,-643.58757995,0.00035514,2]
[359330829,1745931041056,-643.58757995,0.00035514,2]
[359330832,1745931041065,-643.58757995,0.00035514,2]
[359330834,1745931041075,-643.58757995,0.00035514,2]
[359330836,1745931041084,-643.58757995,0.00035514,2]
[359330838,1745931041093,-643.58757995,0.00035514,2]
[359330840,1745931041102,-643.58757995,0.00035514,2]
[359330842,1745931041111,-643.58757995,0.00035514,2]
[359330844,1745931041121,-643.58757995,0.00035514,2]
[359330846,1745931041130,-643.58757995,0.00035514,2]
[359330848,1745931041139,-643.58757995,0.00035514,2]
[359330850,1745931041149,-643.58757995,0.00035514,2]
[359330852,1745931041158,-643.58757995,0.00035514,2]
[359330854,1745931041167,-643.58757995,0.00035514,2]
[359330863,1745931041382,-643.58757995,0.00035514,2]
[359330864,1745931041392,-643.58757995,0.00035514,2]
[359330865,1745931041402,-643.58757995,0.00035514,2]
[359330866,1745931041412,-643.58757995,0.00035514,2]
[359330867,1745931041421,-643.58757995,0.00035514,2]
[359330868,1745931041431,-643.58757995,0.00035514,2]
[359330869,1745931041440,-643.58757995,0.00035514,2]
[359330870,1745931041450,-643.58757995,0.00035514,2]
[359330872,1745931041460,-643.58757995,0.00035514,2]
[359330874,1745931041469,-643.58757995,0.00035514,2]
[359330876,1745931041479,-643.58757995,0.00035514,2]
[359330878,1745931041488,-643.58757995,0.00035514,2]
[359330880,1745931041498,-643.58757995,0.00035514,2]
[359330882,1745931041508,-643.58757995,0.00035514,2]
[359330884,1745931041518,-643.58757995,0.00035514,2]
[359330886,1745931041526,-643.58757995,0.00035514,2]
[359330888,1745931041536,-643.58757995,0.00035514,2]
[359330890,1745931041548,-643.58757995,0.00035514,2]
[359330892,1745931041557,-643.58757995,0.00035514,2]
[359330894,1745931041567,-643.58757995,0.00035514,2]
[359330896,1745931041576,-643.58757995,0.00035514,2]
[359330898,1745931041585,-643.58757995,0.00035514,2]
[359330900,1745931041595,-643.58757995,0.00035514,2]
[359330902,1745931041605,-643.58757995,0.00035514,2]
[359330904,1745931041614,-643.58757995,0.00035514,2]
[359330906,1745931041624,-643.58757995,0.00035514,2]
[359330908,1745931041633,-643.58757995,0.00035514,2]
[359330910,1745931041643,-643.58757995,0.00035514,2]
[359330912,1745931041652,-643.58757995,0.00035514,2]
[359330914,1745931041662,-643.58757995,0.00035514,2]
[359330917,1745931041672,-643.58757995,0.00035514,2]
[359330918,1745931041681,-643.58757995,0.00035514,2]
[359330920,1745931041690,-643.58757994,0.00035514,2]
[359330922,1745931041700,-643.58757994,0.00035514,2]
[359330924,1745931041711,-643.58757994,0.00035514,2]
[359330926,1745931041720,-643.58757994,0.00035514,2]
[359330928,1745931041729,-643.58757994,0.00035514,2]
[359330930,1745931041739,-643.58757994,0.00035514,2]
[359330932,1745931041748,-643.58757994,0.00035514,2]
[359330935,1745931041758,-643.58757994,0.00035514,2]
[359330937,1745931041768,-643.58757994,0.00035514,2]
[359330938,1745931041778,-643.58757994,0.00035514,2]
[359330940,1745931041787,-643.58757994,0.00035514,2]
[359330943,1745931041797,-643.58757994,0.00035514,2]
[359330945,1745931041806,-643.58757994,0.00035514,2]
[359330947,1745931041815,-643.58757994,0.00035514,2]
[359330949,1745931041825,-643.58757994,0.00035514,2]
[359330951,1745931041834,-643.58757994,0.00035514,2]
[359330953,1745931041843,-643.58757994,0.00035514,2]
[359330955,1745931041854,-643.58757994,0.00035514,2]
[359330956,1745931041865,-643.58757994,0.00035514,2]
[359330959,1745931041875,-643.58757994,0.00035514,2]
[359330960,1745931041885,-643.58757994,0.00035514,2]
[359330962,1745931041894,-643.58757994,0.00035514,2]
[359330964,1745931041904,-643.58757994,0.00035514,2]
[359330966,1745931041914,-643.58757994,0.00035514,2]
[359330968,1745931041925,-643.58757994,0.00035514,2]
[359330971,1745931041936,-643.58757994,0.00035514,2]
[359330973,1745931041945,-643.58757994,0.00035514,2]
[359330975,1745931041955,-643.58757996,0.00035514,2]
[359330977,1745931041965,-643.58757996,0.00035514,2]
[359330978,1745931041974,-643.58757996,0.00035514,2]
[359330980,1745931041985,-643.58757996,0.00035514,2]
[359330982,1745931041995,-643.58757996,0.00035514,2]
[359330985,1745931042004,-643.58757996,0.00035514,2]
[359330987,1745931042013,-643.58757996,0.00035514,2]
[359330989,1745931042023,-643.58757996,0.00035514,2]
[359330991,1745931042032,-643.58757996,0.00035514,2]
[359330993,1745931042043,-360.67831204,0.00035515,2]
[359330995,1745931042052,-10295.44220558,0.00035515,3]
[359330997,1745931042061,-46899.77196989,0.00035515,2]
[359331406,1745931046711,-403.0,0.00034499,2]
[359331407,1745931046720,-71.497,0.00035515,2]
[359331408,1745931046842,-3132.05306645,0.00035515,2]
[359331410,1745931046854,-3779.055662,0.00035515,2]
[359331430,1745931172935,-576.10082378,0.00025205,2]
[359331454,1745932231633,-151.0,0.00018585,2]
[359331455,1745932231643,-1000.53123528,0.00025204,2]
[359331456,1745932231652,-163.048207,0.00027397,2]
[359331457,1745932231662,-185.8053899,0.00032335,120]
[359331458,1745932231673,-400.0,0.000325,3]
[359331459,1745932231682,-400.0,0.000325,3]
[359331461,1745932231691,-300.0,0.000325,2]
[359331462,1745932231702,-320.0,0.000325,3]
[359331463,1745932231712,-1017.0,0.000325,3]
[359331464,1745932231723,-24900.0,0.00032501,2]
[359331465,1745932231733,-260.810025,0.00032816,2]
[359331466,1745932231743,-205.23176561,0.000329,10]
[359331467,1745932231753,-205.23176547,0.00033471,11]
[359331468,1745932231762,-1000.0,0.00033635,2]
[359331469,1745932231774,-901.59433045,0.00033663,2]
[359331470,1745932231783,-245.72976436,0.00033735,2]
[359331471,1745932231793,-250.0,0.00033735,2]
[359331472,1745932231804,-12228.9301121,0.00033764,2]
[359331473,1745932231814,-637.6201956,0.00033835,4]
[359331474,1745932231824,-1013.0323373,0.00033876,2]
[359331475,1745932231834,-205.23176547,0.00034043,11]
[359331476,1745932231843,-901.59433044,0.00034559,2]
[359331477,1745932231853,-205.23176547,0.00034614,12]
[359331478,1745932231863,-153.0,0.00034685,30]
[359331479,1745932231873,-320.0609487,0.00034685,30]
[359331480,1745932231883,-576.1505603,0.00034685,30]
[359331481,1745932231893,-560.0,0.00034937,3]
[359331482,1745932231902,-552.0,0.00034937,3]
[359331483,1745932231911,-307.5845431,0.00034959,30]
[359331484,1745932231920,-5000.0,0.00035,30]
[359331485,1745932231929,-205.23176547,0.00035186,12]
[359331486,1745932231939,-2155.46555152,0.00035405,3]
[359331487,1745932231948,-40299.5376269,0.00035415,2]
[359331488,1745932231966,-28400.72150637,0.00035415,2]
[359331489,1745932231976,-901.59433044,0.00035456,2]
[359331490,1745932231985,-160.0,0.00035479,2]
[359331491,1745932231995,-160.0,0.00035479,2]
[359331492,1745932232004,-160.0,0.00035492,2]
[359331493,1745932232013,-2433.06779796,0.000355,15]
[359331494,1745932232025,-1050.81000001,0.000355,15]
[359331507,1745932237673,-649.48900842,0.000355,15]
[359331508,1745932237685,-871.8511375,0.000355,15]
[359331509,1745932237694,-155.0,0.00035514,3]
[359331510,1745932237704,-167.36887749,0.00035516,2]
[359331511,1745932237713,-785.30073938,0.00035596,3]
[359331863,1745932243122,-1370.16481214,0.00035596,3]
[359331866,1745932243132,-587.68,0.000356,2]
[359331868,1745932243142,-353.07567722,0.00035605,7]
[359331870,1745932243151,-500.0,0.00035605,2]
[359331872,1745932243160,-500.0,0.00035605,2]
[359331874,1745932243169,-500.0,0.00035605,2]
[359331876,1745932243179,-500.0,0.00035605,2]
[359331878,1745932243188,-500.0,0.00035605,2]
[359331880,1745932243197,-500.0,0.00035605,2]
[359331881,1745932243206,-500.0,0.00035605,2]
[359331883,1745932243216,-500.0,0.00035605,2]
[359331885,1745932243225,-500.0,0.00035605,2]
[359331887,1745932243234,-500.0,0.00035605,2]
[359331890,1745932243245,-554.65336888,0.00035605,2]
[359331892,1745932243254,-500.0,0.00035605,2]
[359331894,1745932243263,-500.0,0.00035605,2]
[359331896,1745932243272,-500.0,0.00035605,2]
[359331898,1745932243282,-500.0,0.00035605,2]
[359331900,1745932243291,-500.0,0.00035605,2]
[359331902,1745932243301,-3684.41345263,0.00035606,3]
[359331904,1745932243312,-13559.31095957,0.00035606,3]
[359331906,1745932243322,-500.0,0.00035615,7]
[359331908,1745932243331,-500.0,0.00035615,7]
[359331910,1745932243341,-500.0,0.00035615,7]
[359331912,1745932243351,-500.0,0.00035615,7]
[359331914,1745932243360,-500.0,0.00035615,7]
[359331916,1745932243372,-369.52405489,0.00035615,7]
[359331918,1745932243382,-500.0,0.00035615,7]
[359331920,1745932243392,-306.82546891,0.00035615,7]
[359331922,1745932243401,-500.0,0.00035615,7]
[359331924,1745932243411,-500.0,0.00035615,7]
[359331926,1745932243420,-500.0,0.00035615,7]
[359331928,1745932243430,-488.38308799,0.00035615,7]
[359331930,1745932243440,-180.33915602,0.00035616,2]
[359331932,1745932243450,-947.61727262,0.00035616,3]
[359332158,1745932245827,-4200.10383017,0.00035616,3]
[359332159,1745932245837,-151.0,0.00035616,14]
[359332160,1745932245847,-151.0,0.00035616,14]
[359332161,1745932245856,-220.062228,0.00035616,14]
[359332162,1745932245865,-151.0,0.00035616,14]
[359332163,1745932245875,-180.967815,0.00035616,14]
[359332165,1745932245888,-186.245263,0.00035616,14]
[359332166,1745932245897,-400.0,0.00035616,3]
[359332168,1745932245906,-501.85667621,0.00035616,3]
[359332170,1745932245915,-116.84153847,0.00035616,3]
[359332281,1745932364402,-340.03893976,0.00033,23]
[359332282,1745932369552,-3661.6,0.00033,23]
[359332283,1745932373830,-438.25,0.00033,23]
[359332284,1745932382450,-560.11106024,0.00033,23]
[359332287,1745932463279,-163.048207,0.00027397,2]
[359332288,1745932495115,-1000.0,0.000329,2]
[359332290,1745932791038,-1132.97756391,0.00033,10]
[359332340,1745933431823,-313.35099139,0.00028,10]
[359332341,1745933431833,-273.52329061,0.000329,10]
[359332342,1745933431842,-400.0,0.00032998,2]
[359332343,1745933431852,-300.0,0.00032998,3]
[359332344,1745933431869,-300.0,0.00032998,3]
[359332345,1745933431878,-400.0,0.00032999,3]
[359332346,1745933431888,-1600.0,0.00032999,3]
[359332347,1745933431898,-8160.93,0.00033,10]
[359332348,1745933431907,-273.52329053,0.00033176,11]
[359332349,1745933431917,-10683.37755961,0.00033381,2]
[359332350,1745933431929,-937.95,0.00033381,2]
[359332352,1745933432150,-13278.67244039,0.00033381,2]
[359332353,1745933432160,-273.52329053,0.00033452,11]
[359332354,1745933432169,-563.49645656,0.00033635,2]
[359332355,1745933432179,-273.52329053,0.00033728,11]
[359332356,1745933432189,-1000.0,0.00033735,2]
[359332357,1745933432199,-263.52706939,0.00033735,2]
[359332358,1745933432208,-510.0961564,0.00033835,4]
[359332359,1745933432218,-273.52329053,0.00034003,11]
[359332360,1745933432227,-273.52329053,0.00034279,11]
[359332361,1745933432237,-563.49645652,0.00034537,2]
[359332362,1745933432246,-273.52329053,0.00034555,12]
[359332363,1745933432255,-273.52329053,0.00034831,12]
[359332364,1745933432265,-5000.0,0.00035,30]
[359332365,1745933432274,-273.52329053,0.00035107,12]
[359332366,1745933432283,-800.0,0.00035271,2]
[359332367,1745933432293,-160.0,0.00035277,2]
[359332368,1745933432302,-505.9499014,0.00035288,2]
[359332369,1745933432312,-4405.45711977,0.00035305,3]
[359332370,1745933432321,-208.16555144,0.00035305,3]
[359332371,1745933432331,-500.0,0.00035314,2]
[359332372,1745933432341,-500.0,0.00035314,2]
[359332373,1745933432350,-500.0,0.00035314,2]
[359332374,1745933432362,-500.0,0.00035314,2]
[359332375,1745933432371,-500.0,0.00035314,2]
[359332376,1745933432380,-330.46533689,0.00035314,2]
[359332377,1745933432390,-500.0,0.00035314,2]
[359332378,1745933432399,-500.0,0.00035314,2]
[359332379,1745933432409,-370.0517041,0.00035314,2]
[359332380,1745933432419,-500.0,0.00035314,2]
[359332381,1745933432428,-500.0,0.00035314,2]
[359332382,1745933432438,-500.0,0.00035314,2]
[359332383,1745933432447,-5365.26526926,0.00035315,2]
[359332384,1745933432457,-2573.86055139,0.00035315,3]
[359332385,1745933432466,-20374.2706094,0.00035315,2]
[359332386,1745933432478,-4449.50380013,0.00035315,2]
[359332387,1745933432490,-43042.25504977,0.00035315,2]
[359332388,1745933432506,-40395.04365726,0.00035315,2]
[359332422,1745933437868,-500.0,0.00035314,2]
[359332424,1745933437877,-31964.86280156,0.00035315,2]
[359332426,1745933437887,-273.52329053,0.00035383,12]
[359332428,1745933437895,-800.0,0.00035388,2]
[359332430,1745933437905,-505.94990139,0.00035414,2]
[359332432,1745933437915,-563.49645652,0.00035438,2]
[359332434,1745933437924,-560.0,0.00035455,2]
[359332436,1745933437934,-560.0,0.00035456,3]
[359332438,1745933437943,-596.5,0.00035463,2]
[359332440,1745933437952,-203.5,0.00035503,2]
[359332442,1745933437961,-505.94990139,0.00035539,2]
[359332444,1745933437970,-243.81176389,0.00035573,2]
[359332446,1745933437979,-596.5,0.00035574,2]
[359332448,1745933437989,-203.5,0.00035585,2]
[359332450,1745933437998,-528.91,0.000356,2]
[359332452,1745933438008,-800.0,0.000356,3]
[359332454,1745933438017,-3520.99181591,0.00035606,3]
[359332456,1745933438029,-1937.54284362,0.00035606,3]
[359332816,1745933443023,-60.93177949,0.00035606,3]
[359332839,1745933443236,-6228.41921368,0.00035606,3]
[359332841,1745933443246,-832.66220576,0.00035606,3]
[359332843,1745933443255,-228.58574093,0.00035615,7]
[359332845,1745933443265,-175.77123304,0.00035615,7]
[359332847,1745933443274,-160.01001865,0.00035615,7]
[359332849,1745933443284,-151.721698,0.00035616,14]
[359332851,1745933443293,-400.0,0.00035616,3]
[359332853,1745933443303,-501.29015575,0.00035616,3]
[359332855,1745933443313,-500.0,0.00035616,3]
[359332857,1745933443322,-400.0,0.00035616,3]
[359332859,1745933443332,-400.0,0.00035616,3]
[359332862,1745933443341,-505.91150199,0.00035616,3]
[359332865,1745933443362,-215.53201017,0.00035616,3]
[359332868,1745933443372,-400.0,0.00035616,3]
[359332871,1745933443382,-351.19641911,0.00035616,3]
[359332874,1745933443392,-151.0,0.00035616,14]
[359332876,1745933443402,-151.0,0.00035616,14]
[359332878,1745933443411,-164.22383554,0.00035616,3]
[359332880,1745933443421,-164.22383554,0.00035616,3]
[359332882,1745933443431,-151.0,0.00035616,14]
[359332884,1745933443440,-151.0,0.00035616,14]
[359332886,1745933443449,-151.0,0.00035616,14]
[359332888,1745933443459,-151.0,0.00035616,14]
[359332890,1745933443468,-151.0,0.00035616,14]
[359332892,1745933443478,-151.0,0.00035616,14]
[359332894,1745933443487,-151.0,0.00035616,14]
[359332896,1745933443496,-151.0,0.00035616,14]
[359332898,1745933443505,-151.0,0.00035616,14]
[359332900,1745933443515,-501.00957325,0.00035616,3]
[359332902,1745933443524,-500.25057592,0.00035616,3]
[359332904,1745933443534,-500.0,0.00035616,3]
[359332906,1745933443543,-151.0,0.00035616,14]
[359332908,1745933443553,-736.68,0.00035616,3]
[359332910,1745933443562,-400.0,0.00035616,3]
[359332912,1745933443572,-400.0,0.00035616,3]
[359332914,1745933443582,-400.0,0.00035616,3]
[359332916,1745933443592,-500.0,0.00035616,3]
[359332918,1745933443602,-400.0,0.00035616,3]
[359332920,1745933443611,-151.0,0.00035616,14]
[359332922,1745933443620,-151.0,0.00035616,14]
[359332924,1745933443630,-298.32077228,0.00035616,3]
[359332926,1745933443640,-500.0,0.00035616,3]
[359332928,1745933443649,-500.0,0.00035616,3]
[359332930,1745933443659,-151.0,0.00035616,14]
[359332932,1745933443668,-400.0,0.00035616,3]
[359332934,1745933443678,-151.0,0.00035616,14]
[359332936,1745933443687,-400.0,0.00035616,3]
[359332938,1745933443696,-400.0,0.00035616,3]
[359332940,1745933443710,-400.0,0.00035616,3]
[359332942,1745933443720,-507.09861501,0.00035616,3]
[359332944,1745933443730,-818.43,0.00035616,3]
[359332946,1745933443739,-400.0,0.00035616,3]
[359332948,1745933443750,-400.0,0.00035616,3]
[359332950,1745933443759,-400.0,0.00035616,3]
[359332952,1745933443769,-400.0,0.00035616,3]
[359332954,1745933443778,-503.34177397,0.00035616,3]
[359332956,1745933443790,-500.0,0.00035616,3]
[359332958,1745933443802,-400.0,0.00035616,3]
[359332961,1745933443811,-400.0,0.00035616,3]
[359332963,1745933443821,-500.0,0.00035616,3]
[359332964,1745933443830,-400.0,0.00035616,3]
[359332967,1745933443840,-500.0,0.00035616,3]
[359332969,1745933443849,-400.0,0.00035616,3]
[359332970,1745933443859,-400.0,0.00035616,3]
[359332973,1745933443870,-507.49912283,0.00035616,3]
[359332975,1745933443879,-500.0,0.00035616,3]
[359332976,1745933443889,-500.0,0.00035616,3]
[359332979,1745933443898,-500.0,0.00035616,3]
[359332981,1745933443907,-500.0,0.00035616,3]
[359332983,1745933443917,-500.0,0.00035616,3]
[359332985,1745933443927,-515.64858932,0.00035616,3]
[359332987,1745933443938,-500.0,0.00035616,3]
[359332989,1745933443946,-400.0,0.00035616,3]
[359332991,1745933443956,-400.0,0.00035616,3]
[359332993,1745933443966,-400.0,0.00035616,3]
[359332995,1745933443979,-512.96882635,0.00035616,3]
[359332997,1745933443989,-400.0,0.00035616,3]
[359332999,1745933443998,-502.79203906,0.00035616,3]
[359333001,1745933444008,-400.0,0.00035616,3]
[359333003,1745933444017,-500.0,0.00035616,3]
[359333005,1745933444027,-400.0,0.00035616,3]
[359333008,1745933444038,-400.0,0.00035616,3]
[359333010,1745933444047,-500.0,0.00035616,3]
[359333012,1745933444057,-400.0,0.00035616,3]
[359333014,1745933444066,-400.0,0.00035616,3]
[359333016,1745933444076,-708.71,0.00035616,3]
[359333018,1745933444086,-400.0,0.00035616,3]
[359333020,1745933444095,-400.0,0.00035616,3]
[359333022,1745933444104,-400.0,0.00035616,3]
[359333024,1745933444114,-400.0,0.00035616,3]
[359333026,1745933444124,-500.0,0.00035616,3]
[359333028,1745933444134,-334.67801432,0.00035616,3]
[359333030,1745933444143,-400.0,0.00035616,3]
[359333032,1745933444153,-400.0,0.00035616,3]
[359333034,1745933444162,-438.4,0.00035616,3]
[359333036,1745933444175,-513.69980744,0.00035616,3]
[359333038,1745933444185,-523.61405871,0.00035616,3]
[359333040,1745933444196,-502.54138306,0.00035616,3]
[359333043,1745933444205,-1011.25625397,0.00035616,3]
[359333045,1745933444215,-500.0,0.00035616,3]
[359333047,1745933444224,-500.0,0.00035616,3]
[359333049,1745933444234,-500.0,0.00035616,3]
[359333051,1745933444243,-500.0,0.00035616,3]
[359333053,1745933444253,-500.0,0.00035616,3]
[359333055,1745933444263,-400.0,0.00035616,3]
[359333057,1745933444272,-500.0,0.00035616,3]
[359333059,1745933444282,-400.0,0.00035616,3]
[359333061,1745933444292,-502.67656551,0.00035616,3]
[359333063,1745933444303,-400.0,0.00035616,3]
[359333065,1745933444313,-500.0,0.00035616,3]
[359333067,1745933444322,-500.0,0.00035616,3]
[359333069,1745933444332,-151.0,0.00035616,2]
[359333071,1745933444341,-500.0,0.00035616,3]
[359333073,1745933444351,-151.0,0.00035616,14]
[359333075,1745933444360,-500.0,0.00035616,3]
[359333077,1745933444371,-151.0,0.00035616,14]
[359333079,1745933444380,-151.0,0.00035616,14]
[359333081,1745933444390,-151.0,0.00035616,14]
[359333083,1745933444400,-151.0,0.00035616,14]
[359333085,1745933444411,-500.0,0.00035616,3]
[359333087,1745933444421,-231.86032,0.00035616,14]
[359333090,1745933444430,-500.0,0.00035616,3]
[359333092,1745933444441,-500.0,0.00035616,3]
[359333094,1745933444451,-500.0,0.00035616,3]
[359333096,1745933444460,-400.0,0.00035616,3]
[359333098,1745933444469,-400.0,0.00035616,3]
[359333100,1745933444478,-501.49944488,0.00035616,3]
[359333126,1745933444725,-500.0,0.00035616,3]
[359333129,1745933444736,-500.0,0.00035616,3]
[359333131,1745933444745,-500.0,0.00035616,3]
[359333133,1745933444756,-400.0,0.00035616,3]
[359333135,1745933444765,-505.71691069,0.00035616,3]
[359333137,1745933444774,-500.0,0.00035616,3]
[359333139,1745933444783,-500.0,0.00035616,3]
[359333141,1745933444793,-500.0,0.00035616,3]
[359333143,1745933444802,-434.46,0.00035616,3]
[359333144,1745933444811,-500.0,0.00035616,3]
[359333146,1745933444819,-400.0,0.00035616,3]
[359333148,1745933444828,-500.0,0.00035616,3]
[359333150,1745933444837,-500.0,0.00035616,3]
[359333152,1745933444845,-488.66,0.00035616,3]
[359333154,1745933444854,-500.0,0.00035616,3]
[359333156,1745933444864,-440.3370173,0.00035616,3]
[359333158,1745933444873,-500.0,0.00035616,3]
[359333159,1745933444882,-500.0,0.00035616,3]
[359333160,1745933444891,-500.0,0.00035616,3]
[359333161,1745933444899,-400.0,0.00035616,3]
[359333162,1745933444908,-500.0,0.00035616,3]
[359333163,1745933444917,-253.84809484,0.00035616,3]
[359333164,1745933444925,-500.0,0.00035616,3]